fUSD/lending_fUSD_20250828
["ID","MTS","AMOUNT","RATE_DAILY","PERIOD"]
[381878838,1756384270725,-479.96667886,0.00033424,120]
[381878839,1756384270735,-432.66258014,0.00033424,120]
[381878841,1756384270746,-735.20001342,0.00033424,120]
[381878843,1756384270758,-8114.48912657,0.00033424,2]
[381878844,1756384270767,-470.7374137,0.00033424,30]
[381878845,1756384270777,-2218.03019587,0.00033424,2]
[381878846,1756384270787,-23032.60949757,0.00033424,2]
[381878848,1756384270797,-12956.91919804,0.00033424,2]
[381878849,1756384270806,-1939.39429596,0.00033424,2]
[381878850,1756384270816,-185.95480076,0.00033424,2]
[381878851,1756384270825,-5069.17848959,0.00033424,2]
[381878852,1756384270835,-423.78297655,0.00033424,120]
[381878853,1756384270846,-643.0,0.00033424,2]
[381878854,1756384270860,-100003.66775524,0.00033424,2]
[381878855,1756384270870,-980.33586654,0.00033424,2]
[381878856,1756384270880,-1590.5097929,0.00033424,2]
[381878857,1756384270890,-500.0,0.00033424,10]
[381878858,1756384270899,-578.81579122,0.00033424,2]
[381878859,1756384270909,-1042.13155737,0.00033424,30]
[381878860,1756384270919,-1853.86425672,0.00033424,2]
[381878861,1756384270928,-15074.93558307,0.00033424,2]
[381878862,1756384270938,-3273.26326139,0.00033424,2]
[381878863,1756384270947,-497.7925597,0.00033424,120]
[381878864,1756384270956,-156.26527195,0.00033424,2]
[381878865,1756384270966,-177.14038035,0.00033424,2]
[381878866,1756384270976,-252.64924749,0.00033424,120]
[381878867,1756384270985,-159.67726732,0.00033424,2]
[381878868,1756384270994,-175.56328999,0.00033424,2]
[381878869,1756384271005,-550.0,0.00033424,2]
[381878870,1756384271015,-1480.88877234,0.00033424,2]
[381878871,1756384271025,-10000.0,0.00033424,2]
[381878872,1756384271035,-1018.37737752,0.00033424,2]
[381878873,1756384271045,-1052.69346684,0.00033424,7]
[381878874,1756384271055,-1044.00459127,0.00033424,30]
[381878876,1756384271065,-10802.39719116,0.00033424,2]
[381878878,1756384271075,-171486.91055645,0.00033424,2]
[381878880,1756384271085,-928.78520992,0.00033424,120]
[381878882,1756384271095,-15080.17040106,0.00033424,2]
[381878884,1756384271104,-616.06306721,0.00033424,120]
[381878885,1756384271114,-231.29357732,0.00033424,2]
[381878886,1756384271124,-175.53289902,0.00033424,2]
[381878887,1756384271134,-493.0167787,0.00033424,3]
[381878888,1756384271289,-94352.81597129,0.00033424,120]
[381878889,1756384271299,-6000.0,0.00033424,2]
[381878890,1756384271309,-379.22972927,0.00033424,2]
[381878891,1756384271319,-1484.80127615,0.00033424,2]
[381878892,1756384271329,-1043.9971273,0.00033424,2]
[381878893,1756384271339,-471.95075174,0.00033424,7]
[381878894,1756384271348,-1189.12601199,0.00033424,2]
[381878895,1756384271357,-15200.15891822,0.00033424,2]
[381878896,1756384271366,-3085.4363279,0.00033424,2]
[381878897,1756384271376,-5230.27789673,0.00033424,14]
[381878898,1756384271385,-568.91302939,0.00033424,2]
[381878899,1756384271394,-150.0,0.00033424,2]
[381878900,1756384271403,-3356.36715417,0.00033424,2]
[381878901,1756384271413,-795.35452969,0.00033424,120]
[381878902,1756384271422,-230.21382325,0.00033424,14]
[381878903,1756384271432,-7843.95108751,0.00033424,2]
[381878904,1756384271441,-150.90357126,0.00033424,120]
[381878905,1756384271450,-632.7223301,0.00033424,2]
[381878906,1756384271459,-221.83806541,0.00033424,5]
[381878907,1756384271468,-216.91112558,0.00033424,2]
[381878908,1756384271477,-165874.56037751,0.00033424,2]
[381878909,1756384271487,-921.34981861,0.00033424,30]
[381878910,1756384271496,-997.0,0.00033424,30]
[381878911,1756384271509,-620.1617347,0.00033424,120]
[381878912,1756384271518,-1635.38087489,0.00033424,120]
[381878913,1756384271527,-228.75722523,0.00033424,15]
[381878914,1756384271537,-1077.60183187,0.00033424,2]
[381878915,1756384271547,-206.22278018,0.00033424,120]
[381878916,1756384271556,-17891.39649429,0.00033424,120]
[381878917,1756384271565,-2500.0,0.00033424,2]
[381878918,1756384271575,-585.00612454,0.00033424,2]
[381878919,1756384271584,-492.21575119,0.00033424,30]
[381878920,1756384271594,-364.07366594,0.00033424,120]
[381878921,1756384271603,-345.59282789,0.00033424,2]
[381878922,1756384271613,-1100.0,0.00033424,2]
[381878923,1756384271622,-181.41025584,0.00033424,120]
[381878924,1756384271631,-5079.83468227,0.00033424,2]
[381878925,1756384271641,-397.93322322,0.00033424,120]
[381878926,1756384271650,-921.09037545,0.00033424,2]
[381878927,1756384271660,-27232.18068507,0.00033424,2]
[381878928,1756384271670,-486.30777921,0.00033424,2]
[381878929,1756384271679,-15734.03306643,0.00033424,2]
[381878930,1756384271688,-407.25237842,0.00033424,30]
[381878931,1756384271698,-559.69478689,0.00033424,120]
[381878932,1756384271707,-172.14367948,0.00033424,2]
[381878933,1756384271716,-911.92560784,0.00033424,30]
[381878934,1756384271726,-238.34325615,0.00033424,3]
[381878935,1756384271735,-294.05225005,0.00033424,110]
[381878936,1756384271745,-1602.90316406,0.00033424,2]
[381878937,1756384271758,-160.66020068,0.00033424,30]
[381878938,1756384271769,-20954.41396566,0.00033424,2]
[381878939,1756384271778,-1096.03832512,0.00033424,5]
[381878940,1756384271789,-553.69505761,0.00033424,2]
[381878941,1756384271798,-5053.78791991,0.00033424,2]
[381878942,1756384271808,-1021.71307588,0.00033424,2]
[381878943,1756384271818,-1026.91356678,0.00033424,120]
[381878944,1756384271827,-278.28501171,0.00033424,10]
[381878945,1756384271837,-1043.32496809,0.00033424,120]
[381878946,1756384271847,-368.39967912,0.00033424,2]
[381878947,1756384271856,-576.40274847,0.00033424,120]
[381878948,1756384271866,-2225.09988603,0.00033424,2]
[381878949,1756384271876,-1296.81414482,0.00033424,10]
[381878950,1756384271885,-210.49491493,0.00033424,30]
[381878951,1756384271894,-1116.80070379,0.00033424,120]
[381878952,1756384271904,-690.03024574,0.00033424,120]
[381878953,1756384271913,-600.85966908,0.00033424,30]
[381878954,1756384271923,-285.20194611,0.00033424,30]
[381878955,1756384271933,-15320.48711303,0.00033424,120]
[381878956,1756384271943,-275.70608663,0.00033424,30]
[381878957,1756384271952,-23272.04483716,0.00033424,2]
[381878958,1756384271962,-923.79246287,0.00033424,30]
[381878959,1756384271971,-530140.46998501,0.00033424,60]
[381878960,1756384271980,-14934.09974983,0.00033424,2]
[381878961,1756384271989,-210.31321041,0.00033424,31]
[381878962,1756384271998,-76139.00360455,0.00033424,120]
[381878963,1756384272012,-666.80162294,0.00033424,60]
[381878964,1756384272021,-124761.94355439,0.00033424,60]
[381878965,1756384272030,-1854.76408777,0.00033424,2]
[381878966,1756384272039,-1372.76958289,0.00033424,30]
[381878967,1756384272049,-162.27624456,0.00033424,30]
[381878968,1756384272058,-179.01641989,0.00033424,30]
[381878969,1756384272067,-1345.72770414,0.00033424,120]
[381878970,1756384272077,-221.15094923,0.00033424,7]
[381878971,1756384272087,-6652.10898732,0.00033424,120]
[381878972,1756384272096,-1129.19839275,0.00033424,2]
[381878973,1756384272105,-21699.88980495,0.00033424,2]
[381878974,1756384272114,-318.61261824,0.00033424,120]
[381878975,1756384272124,-291.86482865,0.00033424,90]
[381878976,1756384272133,-543.07254621,0.00033424,120]
[381878977,1756384272142,-1188.01512715,0.00033424,120]
[381878978,1756384272151,-45121.16565608,0.00033424,120]
[381878979,1756384272161,-447.646121,0.00033424,7]
[381878980,1756384272170,-236.66245377,0.00033424,7]
[381878981,1756384272179,-406.72011286,0.00033424,2]
[381878982,1756384272188,-7056.34428726,0.00033424,2]
[381878983,1756384272197,-20473.204326,0.00033424,2]
[381878984,1756384272207,-1022.0644251,0.00033424,120]
[381878985,1756384272217,-557.09170996,0.00033424,120]
[381878986,1756384272228,-554.81492452,0.00033424,30]
[381878987,1756384272237,-219.98537964,0.00033424,120]
[381878988,1756384272247,-173.62273237,0.00033424,120]
[381878989,1756384272258,-270.75593185,0.00033424,30]
[381878990,1756384272267,-1112.8878451,0.00033424,120]
[381878991,1756384272277,-585.28883707,0.00033424,120]
[381878992,1756384272286,-529.52027592,0.00033424,120]
[381878993,1756384272297,-204.96886747,0.00033424,2]
[381878994,1756384272306,-872.36397398,0.00033424,2]
[381878995,1756384272315,-832.3482629,0.00033424,120]
[381878996,1756384272325,-443.23717997,0.00033424,30]
[381878997,1756384272334,-179.41421418,0.00033424,120]
[381878998,1756384272343,-621.32887702,0.00033424,5]
[381878999,1756384272352,-3076.70761827,0.00033424,2]
[381879000,1756384272362,-285.75395967,0.00033424,2]
[381879001,1756384272371,-5745.43889247,0.00033424,2]
[381879002,1756384272380,-1028.45055457,0.00033424,7]
[381879003,1756384272389,-1123.98524036,0.00033424,2]
[381879004,1756384272399,-4626.91886294,0.00033424,2]
[381879005,1756384272408,-1037.73777883,0.00033424,120]
[381879006,1756384272417,-2195.29595338,0.00033424,2]
[381879007,1756384272426,-1082.05156297,0.00033424,30]
[381879008,1756384272436,-624.47536257,0.00033424,14]
[381879009,1756384272445,-465.25264614,0.00033424,2]
[381879010,1756384272455,-310.87187253,0.00033424,30]
[381879011,1756384272464,-150.0,0.00033424,14]
[381879012,1756384272474,-504.24938179,0.00033424,120]
[381879013,1756384272483,-150.0,0.00033424,2]
[381879014,1756384272492,-997.67404704,0.00033424,120]
[381879015,1756384272501,-689.23113963,0.00033424,7]
[381879016,1756384272514,-457.45234771,0.00033424,120]
[381879017,1756384272523,-160.0,0.00033424,2]
[381879018,1756384272534,-1059.4002023,0.00033424,120]
[381879019,1756384272543,-329.05437965,0.00033424,30]
[381879020,1756384272553,-12745.99489344,0.00033424,2]
[381879021,1756384272562,-486.59298507,0.00033424,60]
[381879022,1756384272572,-194.33619985,0.00033424,120]
[381879023,1756384272581,-683.32739188,0.00033424,30]
[381879024,1756384272590,-725.71424395,0.00033424,30]
[381879025,1756384272600,-159.57370075,0.00033424,2]
[381879026,1756384272609,-263.88630828,0.00033424,120]
[381879027,1756384272619,-1000.0,0.00033424,120]
[381879028,1756384272629,-463.71199307,0.00033424,120]
[381879029,1756384272638,-15465.97147476,0.00033424,15]
[381879030,1756384272647,-160.0,0.00033424,5]
[381879031,1756384272656,-873.30181491,0.00033424,120]
[381879032,1756384272666,-844.9,0.00033424,120]
[381879033,1756384272675,-1227.71348179,0.00033424,60]
[381879034,1756384272684,-836.75387179,0.00033424,120]
[381879035,1756384272693,-201.48435741,0.00033424,2]
[381879036,1756384272702,-330.41985347,0.00033424,120]
[381879037,1756384272711,-210.70647069,0.00033424,120]
[381879038,1756384272721,-461.999999,0.00033424,2]
[381879039,1756384272730,-750.13236556,0.00033424,2]
[381879040,1756384272739,-4266.0,0.00033424,2]
[381879041,1756384272748,-3025.97569592,0.00033424,30]
[381879042,1756384272760,-359.9661891,0.00033424,120]
[381879043,1756384272769,-5999.99999901,0.00033424,120]
[381879044,1756384272778,-450.71526374,0.00033424,30]
[381879045,1756384272939,-2943.97590732,0.00033424,30]
[381879046,1756384272951,-1022.92754962,0.00033424,30]
[381879047,1756384272962,-6818.30011143,0.00033424,30]
[381879048,1756384272975,-1342.13589448,0.00033424,30]
[381879049,1756384272984,-249.0,0.00033424,120]
[381879050,1756384272993,-150.0,0.00033424,30]
[381879051,1756384273003,-1000.0,0.00033424,60]
[381879052,1756384273016,-174.5,0.00033424,60]
[381879053,1756384273025,-1000.0,0.00033424,90]
[381879054,1756384273035,-844.9,0.00033424,90]
[381879055,1756384273044,-164.3,0.00033424,2]
[381879056,1756384273054,-5000.0,0.00033424,14]
[381879057,1756384273063,-212.2,0.00033424,30]
[381879058,1756384273073,-1091.64768599,0.00033424,30]
[381879059,1756384273082,-193.0,0.00033424,120]
[381879060,1756384273091,-1069.8895934,0.00033424,30]
[381879061,1756384273101,-421.858184,0.00033424,120]
[381879062,1756384273110,-2787.56896743,0.00033424,120]
[381879063,1756384273119,-2016.79068295,0.00033424,120]
[381879064,1756384273128,-1000.0,0.00033424,30]
[381879065,1756384273138,-3763.38234957,0.00033424,7]
[381879066,1756384273147,-263.17769462,0.00033424,75]
[381879067,1756384273156,-5149.62,0.00033424,31]
[381879068,1756384273166,-1071.0,0.00033424,120]
[381879069,1756384273175,-1000.0,0.00033424,120]
[381879070,1756384273184,-1000.0,0.00033424,120]
[381879071,1756384273193,-3029.88294756,0.00033424,60]
[381879072,1756384273240,-151.0,0.000207,2]
[381879073,1756384273250,-2098.95340702,0.00033424,60]
[381879074,1756384273265,-5973.39313784,0.00033424,60]
[381879075,1756384273465,-414.87,0.00018273,2]
[381879076,1756384273474,-195.966966,0.0002,2]
[381879077,1756384273484,-202.697151,0.0002,2]
[381879078,1756384273493,-151.0,0.0002,2]
[381879079,1756384273502,-151.0,0.0002,2]
[381879080,1756384273514,-151.0,0.0002,2]
[381879081,1756384273524,-195.966966,0.000207,2]
[381879082,1756384273533,-202.697151,0.000207,2]
[381879083,1756384273543,-151.0,0.000207,2]
[381879084,1756384273552,-151.0,0.000207,2]
[381879085,1756384273562,-151.0,0.000207,2]
[381879086,1756384273571,-400.0,0.00021998,2]
[381879087,1756384273581,-202.697151,0.000228,7]
[381879088,1756384273590,-151.0,0.000228,7]
[381879089,1756384273600,-151.0,0.000228,7]
[381879090,1756384273610,-195.966966,0.000228,7]
[381879091,1756384273619,-202.697151,0.000228,7]
[381879092,1756384273628,-151.0,0.000228,7]
[381879093,1756384273638,-151.0,0.000228,7]
[381879094,1756384273648,-151.0,0.000228,7]
[381879095,1756384273657,-195.966966,0.000248,7]
[381879096,1756384273668,-151.0,0.000248,7]
[381879097,1756384273678,-202.697151,0.000248,7]
[381879098,1756384273688,-151.0,0.000248,7]
[381879099,1756384273698,-151.0,0.000248,7]
[381879100,1756384273708,-195.966966,0.000248,7]
[381879101,1756384273718,-202.697151,0.000248,7]
[381879102,1756384273727,-156.358075,0.000248,7]
[381879103,1756384273737,-151.0,0.000248,7]
[381879104,1756384273747,-151.0,0.000248,7]
[381879105,1756384273759,-195.966966,0.00026981,7]
[381879106,1756384273770,-202.697151,0.00026981,7]
[381879107,1756384273779,-151.0,0.00026981,7]
[381879108,1756384273789,-151.0,0.00026981,7]
[381879109,1756384273798,-151.0,0.00026981,7]
[381879110,1756384273808,-195.966959,0.00026981,7]
[381879111,1756384273818,-202.697159,0.00026981,7]
[381879112,1756384273827,-151.0,0.00026981,7]
[381879113,1756384273837,-151.0,0.00026981,7]
[381879114,1756384273846,-799.6526279,0.00033424,60]
[381879115,1756384273858,-66657.64910273,0.00033424,60]
[381879116,1756384273869,-25186.3396482,0.00033424,60]
[381879117,1756384273881,-1869.29553462,0.00033424,60]
[381879118,1756384273983,-927.19605625,0.000179,2]
[381879119,1756384273993,-151.0,0.0002,2]
[381879120,1756384274003,-293.660527,0.000207,2]
[381879121,1756384274017,-2086.9,0.000221,2]
[381879122,1756384274027,-2086.9,0.00023428,2]
[381879123,1756384274037,-768.61245658,0.00024856,2]
[381879124,1756384274049,-1318.28754342,0.00024856,2]
[381879125,1756384274059,-688.0,0.00025859,2]
[381879126,1756384274069,-1555.15933489,0.00026284,7]
[381879127,1756384274084,-531.74066511,0.00026284,7]
[381879128,1756384274094,-2086.9,0.00027712,7]
[381879129,1756384274103,-2086.9,0.0002914,30]
[381879130,1756384274113,-768.82,0.000327,2]
[381879131,1756384274122,-331.97,0.000327,2]
[381879132,1756384274131,-1605.24226399,0.00033424,60]
[381879133,1756384274142,-3570.5999991,0.00033424,60]
[381879138,1756384422875,-282.40988421,0.000171,2]
[381879139,1756384422897,-767.573887,0.00017114,2]
[381879140,1756384431609,127.92642037,0.00020548,30]
[381879141,1756384431639,44.29580188,0.00020548,30]
[381879142,1756384464792,-345.16507348,0.000172,2]
[381879143,1756384464815,-248.85115531,0.000172,2]
[381879170,1756384503167,360.0,0.00030136,120]
[381879181,1756384503864,-165.08649058,0.00013723,2]
[381879198,1756384971214,4000.00000413,0.000301,120]
[381879204,1756385224634,-160.16650942,0.00013699,2]
[381879205,1756385226044,-45.49349058,0.00013699,2]
[381879210,1756385431850,-500.0,0.00017668,2]
[381879211,1756385431860,-250.0,0.00017668,2]
[381879212,1756385431870,-251.0,0.00017702,2]
[381879213,1756385431879,-169.05542108,0.00017735,2]
[381879214,1756385431888,-251.0,0.00017736,2]
[381879215,1756385431898,-500.0,0.00017804,2]
[381879216,1756385431907,-250.0,0.00017804,2]
[381879217,1756385431917,-83.52967697,0.00017827,2]
[381879218,1756385432091,-167.47032303,0.00017827,2]
[381879219,1756385432100,-1200.0,0.00017899,2]
[381879220,1756385432110,-532.52967697,0.000179,2]
[381879221,1756385432121,-2020.39709815,0.000179,2]
[381879222,1756385432133,-1044.07494815,0.000179,2]
[381879223,1756385432144,-3983.67542834,0.000179,2]
[381879224,1756385432161,-343.17697357,0.000179,2]
[381879225,1756385432185,-2642.87647482,0.000179,2]
[381879226,1756385432196,-165.22,0.00017948,2]
[381879228,1756385432208,-500.0,0.00017973,2]
[381879231,1756385432221,-153.831925,0.00017988,2]
[381879232,1756385432233,-157.792066,0.00017988,2]
[381879233,1756385432243,-550.0,0.00017998,2]
[381879234,1756385432254,-400.0,0.00017999,2]
[381879235,1756385432265,-400.0,0.00017999,2]
[381879237,1756385432275,-400.0,0.00017999,2]
[381879238,1756385432285,-400.0,0.00017999,2]
[381879239,1756385432295,-400.0,0.00017999,2]
[381879242,1756385432306,-157.792063,0.00018171,2]
[381879244,1756385432316,-400.0,0.00018273,2]
[381879245,1756385432326,-400.0,0.00018273,2]
[381879246,1756385432336,-400.0,0.00018273,2]
[381879247,1756385432347,-400.0,0.00018273,2]
[381879248,1756385432357,-400.0,0.00018273,2]
[381879249,1756385432368,-400.0,0.00018547,2]
[381879250,1756385432378,-400.0,0.00018547,2]
[381879251,1756385432389,-400.0,0.00018547,2]
[381879252,1756385432399,-157.792063,0.00018719,2]
[381879253,1756385432409,-400.0,0.00018821,2]
[381879254,1756385432419,-400.0,0.00018821,2]
[381879255,1756385432430,-400.0,0.00018821,2]
[381879256,1756385432440,-500.0,0.00018889,2]
[381879257,1756385432450,-157.792063,0.00018993,2]
[381879258,1756385432460,-500.0,0.00019071,2]
[381879259,1756385432470,-405.0,0.00019078,2]
[381879260,1756385432481,-603.38065453,0.00019095,2]
[381879261,1756385432491,-400.0,0.00019095,2]
[381879262,1756385432502,-403.15306543,0.00019095,2]
[381879263,1756385432514,-400.0,0.00019095,2]
[381879264,1756385432525,-492.0,0.00019108,2]
[381879265,1756385432537,-500.0,0.00019201,2]
[381879266,1756385432548,-250.0,0.00019201,2]
[381879267,1756385432559,-500.0,0.00019239,2]
[381879268,1756385432570,-432.52438624,0.00019239,2]
[381879269,1756385432580,-287.45456354,0.00019367,2]
[381879270,1756385432591,-400.0,0.00019369,2]
[381879271,1756385432601,-400.0,0.00019369,2]
[381879272,1756385432611,-251.0,0.00019435,2]
[381879273,1756385432620,-300.0,0.00019435,2]
[381879274,1756385432635,-251.0,0.00019435,2]
[381879275,1756385432645,-157.792063,0.00019541,2]
[381879276,1756385432657,-400.0,0.00019643,2]
[381879277,1756385432668,-400.0,0.00019643,2]
[381879278,1756385432679,-571.653245,0.0001977,2]
[381879279,1756385432692,-500.0,0.00019793,2]
[381879280,1756385432702,-500.0,0.00019793,2]
[381879281,1756385432713,-157.792063,0.00020089,2]
[381879282,1756385432723,-205.66,0.00020187,2]
[381879283,1756385432735,-157.792063,0.00020363,2]
[381879284,1756385432745,-346.84,0.000208,2]
[381879285,1756385432755,-157.792063,0.00020911,2]
[381879286,1756385432766,-160.0,0.00021151,2]
[381879287,1756385432778,-500.0,0.00021967,2]
[381879288,1756385432792,-647.33948566,0.00021967,2]
[381879289,1756385432804,-645.79127351,0.00021967,2]
[381879290,1756385432815,-486.64439252,0.00021967,2]
[381879291,1756385432826,-4105.42203734,0.00022,2]
[381879292,1756385432837,-500.0,0.00022056,2]
[381879293,1756385432847,-500.0,0.00022056,2]
[381879294,1756385432858,-500.0,0.00022056,2]
[381879295,1756385432874,-500.46403506,0.00022056,2]
[381879296,1756385432888,-695.63,0.000221,2]
[381879297,1756385432899,-334.07,0.00022501,2]
[381879298,1756385432910,-5000.0,0.00022513,2]
[381879299,1756385432920,-250.0,0.00022564,2]
[381879300,1756385432932,-2751.0,0.00022567,2]
[381879301,1756385432943,-160.0,0.00022602,7]
[381879302,1756385432954,-1000.0,0.00022631,2]
[381879303,1756385432966,-150.0,0.00022687,2]
[381879304,1756385432976,-183.51,0.00022696,2]
[381879305,1756385432987,-695.63,0.00023423,2]
[381879306,1756385432997,-18591.0,0.00023668,2]
[381879307,1756385433009,-160.0,0.00024,7]
[381879308,1756385433019,-334.725,0.00024109,2]
[381879309,1756385433030,-10174.39,0.00024254,2]
[381879310,1756385433041,-168.0,0.00024322,2]
[381879311,1756385433051,-168.0,0.00024457,2]
[381879312,1756385433062,-168.0,0.00024614,2]
[381879313,1756385433073,-168.0,0.00024638,2]
[381879314,1756385433085,-160.0,0.000248,3]
[381879315,1756385433095,-695.63,0.00024846,2]
[381879316,1756385433105,-150.0,0.00024886,2]
[381879317,1756385433115,-168.0,0.00024974,2]
[381879318,1756385433126,-500.0,0.00025122,2]
[381879319,1756385433136,-500.0,0.00025122,2]
[381879320,1756385433147,-150.0,0.00025122,2]
[381879321,1756385433158,-159.89327915,0.00025122,2]
[381879322,1756385433168,-150.0,0.00025122,2]
[381879323,1756385433179,-150.0,0.00025122,2]
[381879324,1756385433191,-150.0,0.00025122,2]
[381879325,1756385433206,-168.0,0.00025306,2]
[381879326,1756385433217,-168.0,0.00025315,2]
[381879327,1756385433229,-168.0,0.00025354,2]
[381879328,1756385433240,-500.0,0.00025396,2]
[381879329,1756385433252,-500.0,0.00025396,2]
[381879330,1756385433263,-150.0,0.00025396,2]
[381879331,1756385433275,-250.0,0.00025396,2]
[381879332,1756385433286,-150.0,0.00025396,2]
[381879333,1756385433297,-250.0,0.00025396,2]
[381879334,1756385433308,-168.0,0.00025433,2]
[381879335,1756385433319,-1000.0,0.0002546,2]
[381879336,1756385433329,-168.0,0.00025535,2]
[381879337,1756385433339,-500.0,0.0002567,2]
[381879338,1756385433348,-500.0,0.0002567,2]
[381879339,1756385433359,-250.0,0.0002567,2]
[381879340,1756385433369,-1000.0,0.00025859,3]
[381879341,1756385433380,-1000.0,0.00025859,3]
[381879342,1756385433391,-1000.0,0.00025859,3]
[381879343,1756385433401,-1000.0,0.00025859,3]
[381879344,1756385433411,-1000.0,0.00025859,3]
[381879345,1756385433423,-1000.0,0.00025859,3]
[381879346,1756385433434,-1000.0,0.00025859,3]
[381879347,1756385433446,-1000.0,0.00025859,3]
[381879348,1756385433458,-1000.0,0.00025859,3]
[381879349,1756385433469,-1000.0,0.00025859,3]
[381879350,1756385433479,-1000.0,0.00025859,3]
[381879351,1756385433488,-1000.0,0.00025859,3]
[381879352,1756385433498,-218.0,0.00025859,3]
[381879353,1756385433508,-409.82097998,0.00025859,3]
[381879354,1756385433518,-168.0,0.00025956,2]
[381879355,1756385433528,-168.0,0.00026191,2]
[381879356,1756385433538,-695.63,0.00026269,7]
[381879357,1756385433548,-669.45,0.00026301,7]
[381879358,1756385433558,-205.66,0.00026676,2]
[381879359,1756385433568,-718.70698,0.00027037,2]
[381879360,1756385433578,-522.0,0.00027137,2]
[381879361,1756385433588,-730.906,0.00027376,16]
[381879362,1756385433598,-403.54,0.00027397,80]
[381879363,1756385433609,-300.0,0.00027397,2]
[381879364,1756385433619,-3631.83573667,0.00027402,2]
[381879365,1756385433634,-524.16426333,0.00027402,2]
[381879366,1756385433647,-926.6698765,0.00027402,2]
[381879367,1756385433660,-247.3301235,0.00027402,2]
[381879368,1756385433671,-169.23744463,0.00027676,2]
[381879369,1756385433683,-695.63,0.00027693,7]
[381879370,1756385433696,-718.70698,0.00028133,2]
[381879371,1756385433707,-7.09429692,0.00028219,7]
[381879372,1756385433721,-477.31570308,0.00028219,7]
[381879373,1756385433731,-1000.0,0.00028289,2]
[381879374,1756385433742,-918.18552483,0.00028493,12]
[381879375,1756385433754,-85.98947517,0.00028493,12]
[381879376,1756385433764,-281.52692057,0.000288,7]
[381879377,1756385433778,-758.99307943,0.000288,7]
[381879378,1756385433788,-484.41,0.00028904,8]
[381879379,1756385433802,-160.0,0.00029,10]
[381879380,1756385433813,-390.32451152,0.00029116,30]
[381879381,1756385433830,-305.30548848,0.00029116,30]
[381879382,1756385433840,-718.70698,0.00029229,2]
[381879383,1756385433851,-484.41,0.00029589,9]
[381879384,1756385433861,-337.53,0.0003,2]
[381879385,1756385433873,-157.0,0.00030273,5]
[381879386,1756385433885,-484.41,0.00030273,10]
[381879387,1756385433896,-718.70698,0.00030325,2]
[381879388,1756385433912,-4156.0,0.00030402,2]
[381879389,1756385433923,-1174.0,0.00030402,2]
[381879390,1756385433933,-695.63,0.00030539,30]
[381879391,1756385433944,-1338.9,0.00030684,17]
[381879392,1756385433955,-403.54,0.00030822,80]
[381879393,1756385433967,-484.41,0.00030958,11]
[381879394,1756385433978,-160.0,0.00031,30]
[381879395,1756385433989,-296.07925505,0.00031117,2]
[381879396,1756385434012,-678.29002047,0.00031117,2]
[381879397,1756385434025,-25.63072448,0.00031117,2]
[381879398,1756385434036,-718.70698,0.00031421,2]
[381879399,1756385434046,-334.07,0.00031501,2]
[381879400,1756385434057,-302.93630192,0.00031643,12]
[381879401,1756385434070,-181.47369808,0.00031643,12]
[381879402,1756385434079,-166.18,0.00031879,2]
[381879403,1756385434091,-408.79,0.00031879,2]
[381879404,1756385434101,-408.23,0.00031879,2]
[381879405,1756385434111,-166.18,0.00031879,2]
[381879406,1756385434121,-117.55496436,0.00031879,2]
[381879407,1756385434134,-48.26503564,0.00031879,2]
[381879408,1756385434144,-695.63,0.00031962,30]
[381879409,1756385434160,-200.0,0.00032,120]
[381879410,1756385434170,-484.41,0.00032328,13]
[381879411,1756385434181,-718.70698,0.00032516,2]
[381879412,1756385434191,-400.0,0.00032699,2]
[381879413,1756385434201,-400.0,0.00032699,2]
[381879414,1756385434212,-400.0,0.00032699,2]
[381879415,1756385434223,-400.0,0.00032699,2]
[381879416,1756385434233,-400.0,0.00032699,2]
[381879417,1756385434244,-400.0,0.00032699,2]